[Event "Early Titled Tuesday Blitz | February 8 2022"]
[White "Bambino Filho, Antonio Carlos"]
[Black "Allahverdiyeva, Ayan"]
[WhiteFideId "2113163"]
[BlackFideId "13412590"]
[WhiteElo "2455"]
[BlackElo "1910"]
[Result "1-0"]
[Round "09"]
[TimeControl "180+1"]
[Date "2022.02.08"]
[WhiteClock "0:00:19"]
[BlackClock "0:00:16"]

1. e4 {[%clk 0:02:56]}  c5 {[%clk 0:02:59]} 2. Nf3 {[%clk 0:02:56]}  d6 {[%clk 0:02:59]} 3. d4 {[%clk 0:02:56]}  cxd4 {[%clk 0:02:59]} 4. Nxd4 {[%clk 0:02:57]}  Nf6 {[%clk 0:03:00]} 5. Nc3 {[%clk 0:02:57]}  a6 {[%clk 0:03:00]} 6. Be3 {[%clk 0:02:50]}  e6 {[%clk 0:02:58]} 7. f3 {[%clk 0:02:42]}  Be7 {[%clk 0:02:54]} 8. Qd2 {[%clk 0:02:42]}  O-O {[%clk 0:02:49]} 9. O-O-O {[%clk 0:02:43]}  b5 {[%clk 0:02:35]} 10. g4 {[%clk 0:02:40]}  Bb7 {[%clk 0:02:27]} 11. g5 {[%clk 0:02:38]}  Nfd7 {[%clk 0:02:26]} 12. h4 {[%clk 0:02:27]}  Nc6 {[%clk 0:02:26]} 13. Nxc6 {[%clk 0:02:18]}  Bxc6 {[%clk 0:02:25]} 14. Ne2 {[%clk 0:02:19]}  Rb8 {[%clk 0:02:20]} 15. Nd4 {[%clk 0:02:19]}  Ba8 {[%clk 0:02:19]} 16. h5 {[%clk 0:02:20]}  b4 {[%clk 0:02:18]} 17. g6 {[%clk 0:02:20]}  Bf6 {[%clk 0:01:48]} 18. gxf7+ {[%clk 0:02:20]}  Kxf7 {[%clk 0:01:46]} 19. Nxe6 {[%clk 0:02:16]}  Qa5 {[%clk 0:01:34]} 20. Bc4 {[%clk 0:02:13]}  Rfc8 {[%clk 0:00:49]} 21. Nc7+ {[%clk 0:01:24]}  Kf8 {[%clk 0:00:43]} 22. Qxd6+ {[%clk 0:01:07]}  Be7 {[%clk 0:00:37]} 23. Ne6+ {[%clk 0:00:41]}  Kf7 {[%clk 0:00:30]} 24. Nc5+ {[%clk 0:00:36]}  Kf8 {[%clk 0:00:19]} 25. Nxd7+ {[%clk 0:00:34]}  Ke8 {[%clk 0:00:19]} 26. Qe6 {[%clk 0:00:22]}  Rxc4 {[%clk 0:00:16]} 27. Qxc4 {[%clk 0:00:19]} 1-0


[Site "https://www.chess.com"]

[Event "Early Titled Tuesday Blitz | February 8 2022"]
[White "Barp, Alberto"]
[Black "Ljukin, Sergei"]
[WhiteFideId "872555"]
[BlackFideId "14102200"]
[WhiteElo "2229"]
[BlackElo "2312"]
[Result "1-0"]
[Round "09"]
[TimeControl "180+1"]
[Date "2022.02.08"]
[WhiteClock "0:00:09"]
[BlackClock "0:00:08"]

1. d4 {[%clk 0:03:00]}  d5 {[%clk 0:02:51]} 2. c4 {[%clk 0:02:59]}  c6 {[%clk 0:02:51]} 3. Nf3 {[%clk 0:02:59]}  Nf6 {[%clk 0:02:51]} 4. e3 {[%clk 0:02:59]}  e6 {[%clk 0:02:51]} 5. Bd3 {[%clk 0:02:51]}  dxc4 {[%clk 0:02:49]} 6. Bxc4 {[%clk 0:02:51]}  b5 {[%clk 0:02:50]} 7. Bd3 {[%clk 0:02:50]}  Nbd7 {[%clk 0:02:49]} 8. e4 {[%clk 0:02:45]}  a6 {[%clk 0:02:46]} 9. e5 {[%clk 0:02:40]}  Nd5 {[%clk 0:02:46]} 10. a4 {[%clk 0:02:40]}  b4 {[%clk 0:02:44]} 11. O-O {[%clk 0:02:36]}  c5 {[%clk 0:02:43]} 12. Bg5 {[%clk 0:02:16]}  Qb6 {[%clk 0:02:35]} 13. a5 {[%clk 0:02:13]}  Qa7 {[%clk 0:02:34]} 14. Nbd2 {[%clk 0:02:12]}  h6 {[%clk 0:02:27]} 15. Be3 {[%clk 0:01:57]}  Nxe3 {[%clk 0:02:24]} 16. fxe3 {[%clk 0:01:58]}  Be7 {[%clk 0:02:17]} 17. d5 {[%clk 0:00:58]}  exd5 {[%clk 0:02:00]} 18. e6 {[%clk 0:00:59]}  fxe6 {[%clk 0:01:58]} 19. Bg6+ {[%clk 0:00:59]}  Kd8 {[%clk 0:01:58]} 20. e4 {[%clk 0:00:50]}  Bb7 {[%clk 0:01:31]} 21. exd5 {[%clk 0:00:50]}  Bxd5 {[%clk 0:01:30]} 22. Kh1 {[%clk 0:00:39]}  Kc7 {[%clk 0:01:24]} 23. Qe2 {[%clk 0:00:38]}  Rad8 {[%clk 0:01:17]} 24. Be4 {[%clk 0:00:37]}  Bd6 {[%clk 0:01:11]} 25. Nc4 {[%clk 0:00:31]}  Nf6 {[%clk 0:01:03]} 26. Bxd5 {[%clk 0:00:24]}  exd5 {[%clk 0:01:03]} 27. Nxd6 {[%clk 0:00:18]}  Rxd6 {[%clk 0:01:02]} 28. Qe7+ {[%clk 0:00:18]}  Rd7 {[%clk 0:01:02]} 29. Qe5+ {[%clk 0:00:17]}  Kb7 {[%clk 0:00:54]} 30. Rac1 {[%clk 0:00:17]}  Rc8 {[%clk 0:00:52]} 31. Qf5 {[%clk 0:00:16]}  Ka8 {[%clk 0:00:42]} 32. Ne5 {[%clk 0:00:16]}  Rdc7 {[%clk 0:00:40]} 33. b3 {[%clk 0:00:14]}  c4 {[%clk 0:00:34]} 34. bxc4 {[%clk 0:00:15]}  dxc4 {[%clk 0:00:33]} 35. Qf3+ {[%clk 0:00:11]}  Qb7 {[%clk 0:00:33]} 36. Qe2 {[%clk 0:00:10]}  c3 {[%clk 0:00:31]} 37. h3 {[%clk 0:00:05]}  c2 {[%clk 0:00:30]} 38. Nd3 {[%clk 0:00:04]}  b3 {[%clk 0:00:29]} 39. Nb2 {[%clk 0:00:04]}  Qb5 {[%clk 0:00:17]} 40. Qe3 {[%clk 0:00:04]}  Qd5 {[%clk 0:00:16]} 41. Na4 {[%clk 0:00:03]}  Qe4 {[%clk 0:00:13]} 42. Nb6+ {[%clk 0:00:04]}  Kb7 {[%clk 0:00:12]} 43. Qxb3 {[%clk 0:00:05]}  Ka7 {[%clk 0:00:09]} 44. Nxc8+ {[%clk 0:00:05]}  Rxc8 {[%clk 0:00:10]} 45. Rfe1 {[%clk 0:00:05]}  Qc6 {[%clk 0:00:09]} 46. Qe3+ {[%clk 0:00:05]}  Qc5 {[%clk 0:00:09]} 47. Qe7+ {[%clk 0:00:04]}  Qxe7 {[%clk 0:00:09]} 48. Rxe7+ {[%clk 0:00:05]}  Ka8 {[%clk 0:00:09]} 49. Re2 {[%clk 0:00:06]}  Nh5 {[%clk 0:00:08]} 50. Rexc2 {[%clk 0:00:07]}  Rd8 {[%clk 0:00:08]} 51. Rc8+ {[%clk 0:00:06]}  Rxc8 {[%clk 0:00:08]} 52. Rxc8+ {[%clk 0:00:07]}  Kb7 {[%clk 0:00:08]} 53. Rc3 {[%clk 0:00:07]}  Nf6 {[%clk 0:00:08]} 54. Rb3+ {[%clk 0:00:07]}  Ka7 {[%clk 0:00:08]} 55. Rg3 {[%clk 0:00:07]}  g5 {[%clk 0:00:07]} 56. Rc3 {[%clk 0:00:07]}  Nd5 {[%clk 0:00:08]} 57. Rc6 {[%clk 0:00:06]}  h5 {[%clk 0:00:08]} 58. Rc5 {[%clk 0:00:06]}  Ne3 {[%clk 0:00:07]} 59. Rxg5 {[%clk 0:00:06]}  Nf1 {[%clk 0:00:08]} 60. Rg7+ {[%clk 0:00:07]}  Ka8 {[%clk 0:00:08]} 61. Kg1 {[%clk 0:00:08]}  Ne3 {[%clk 0:00:08]} 62. Rg5 {[%clk 0:00:08]}  h4 {[%clk 0:00:08]} 63. Kf2 {[%clk 0:00:08]}  Nc4 {[%clk 0:00:08]} 64. Kf3 {[%clk 0:00:07]}  Kb7 {[%clk 0:00:08]} 65. Kg4 {[%clk 0:00:08]}  Ne3+ {[%clk 0:00:08]} 66. Kxh4 {[%clk 0:00:08]}  Kc6 {[%clk 0:00:08]} 67. g4 {[%clk 0:00:08]}  Kd6 {[%clk 0:00:08]} 68. Kh5 {[%clk 0:00:08]}  Ke6 {[%clk 0:00:08]} 69. Rg6+ {[%clk 0:00:08]}  Kf7 {[%clk 0:00:08]} 70. Rxa6 {[%clk 0:00:09]} 1-0


[Site "https://www.chess.com"]

[Event "Early Titled Tuesday Blitz | February 8 2022"]
[White "Bauer, Thomas"]
[Black "Saim, Mohamed Ilias"]
[WhiteFideId "1639293"]
[BlackFideId "7900465"]
[WhiteElo "2220"]
[BlackElo "2006"]
[Result "1-0"]
[Round "09"]
[TimeControl "180+1"]
[Date "2022.02.08"]
[WhiteClock "0:01:38"]
[BlackClock "0:00:03"]

1. d4 {[%clk 0:03:00]}  Nf6 {[%clk 0:02:59]} 2. c4 {[%clk 0:02:59]}  e6 {[%clk 0:02:58]} 3. Nc3 {[%clk 0:02:59]}  Bb4 {[%clk 0:02:57]} 4. a3 {[%clk 0:02:58]}  Bxc3+ {[%clk 0:02:57]} 5. bxc3 {[%clk 0:02:59]}  b6 {[%clk 0:02:56]} 6. f3 {[%clk 0:02:58]}  c5 {[%clk 0:02:54]} 7. d5 {[%clk 0:02:53]}  d6 {[%clk 0:02:45]} 8. e4 {[%clk 0:02:49]}  e5 {[%clk 0:02:38]} 9. Bd3 {[%clk 0:02:42]}  Nbd7 {[%clk 0:02:21]} 10. Nh3 {[%clk 0:02:41]}  O-O {[%clk 0:02:14]} 11. O-O {[%clk 0:02:41]}  h6 {[%clk 0:02:08]} 12. Ra2 {[%clk 0:02:41]}  Nh7 {[%clk 0:02:05]} 13. Raf2 {[%clk 0:02:40]}  Ndf6 {[%clk 0:01:54]} 14. g4 {[%clk 0:02:36]}  g5 {[%clk 0:01:39]} 15. Kh1 {[%clk 0:02:28]}  Kg7 {[%clk 0:01:12]} 16. Ng1 {[%clk 0:02:27]}  h5 {[%clk 0:01:07]} 17. gxh5 {[%clk 0:02:27]}  Nxh5 {[%clk 0:01:05]} 18. Rg2 {[%clk 0:02:23]}  f6 {[%clk 0:00:44]} 19. f4 {[%clk 0:02:14]}  exf4 {[%clk 0:00:37]} 20. Qxh5 {[%clk 0:02:12]}  Kh8 {[%clk 0:00:24]} 21. e5 {[%clk 0:02:10]}  Qe7 {[%clk 0:00:18]} 22. exd6 {[%clk 0:02:09]}  Qf7 {[%clk 0:00:16]} 23. Bg6 {[%clk 0:02:08]}  Qg7 {[%clk 0:00:15]} 24. h4 {[%clk 0:02:01]}  Kg8 {[%clk 0:00:10]} 25. hxg5 {[%clk 0:01:58]}  fxg5 {[%clk 0:00:11]} 26. Rh2 {[%clk 0:01:45]}  Nf6 {[%clk 0:00:07]} 27. Qxg5 {[%clk 0:01:43]}  Bg4 {[%clk 0:00:03]} 28. Rxf4 {[%clk 0:01:38]} 1-0


[Site "https://www.chess.com"]

[Event "Early Titled Tuesday Blitz | February 8 2022"]
[White "Bongo Akanga Ndjila, Barthelemy"]
[Black "Winkels, Marcel"]
[WhiteFideId "10609431"]
[BlackFideId "1003887"]
[WhiteElo "1803"]
[BlackElo "1900"]
[Result "1-0"]
[Round "09"]
[TimeControl "180+1"]
[Date "2022.02.08"]
[WhiteClock "0:00:08"]
[BlackClock "0:00:03"]

1. d4 {[%clk 0:03:00]}  Nf6 {[%clk 0:02:57]} 2. c4 {[%clk 0:02:58]}  g6 {[%clk 0:02:58]} 3. Nc3 {[%clk 0:02:57]}  Bg7 {[%clk 0:02:58]} 4. e4 {[%clk 0:02:56]}  d6 {[%clk 0:02:59]} 5. Be2 {[%clk 0:02:54]}  O-O {[%clk 0:03:00]} 6. Nf3 {[%clk 0:02:52]}  e5 {[%clk 0:02:59]} 7. O-O {[%clk 0:02:52]}  exd4 {[%clk 0:02:57]} 8. Nxd4 {[%clk 0:02:51]}  Re8 {[%clk 0:02:58]} 9. f3 {[%clk 0:02:51]}  c6 {[%clk 0:02:57]} 10. Kh1 {[%clk 0:02:50]}  Nh5 {[%clk 0:02:45]} 11. Nc2 {[%clk 0:02:42]}  Qh4 {[%clk 0:02:43]} 12. Kg1 {[%clk 0:02:36]}  Na6 {[%clk 0:02:35]} 13. Be3 {[%clk 0:02:34]}  Be6 {[%clk 0:02:28]} 14. Bf2 {[%clk 0:02:29]}  Qe7 {[%clk 0:02:26]} 15. Qd2 {[%clk 0:02:23]}  Nc5 {[%clk 0:02:16]} 16. Rac1 {[%clk 0:02:16]}  a5 {[%clk 0:02:12]} 17. Nd4 {[%clk 0:02:12]}  Rad8 {[%clk 0:02:03]} 18. Be3 {[%clk 0:02:07]}  Qf6 {[%clk 0:01:57]} 19. Rfd1 {[%clk 0:02:01]}  Rd7 {[%clk 0:01:48]} 20. Bg5 {[%clk 0:01:58]}  Qxd4+ {[%clk 0:01:46]} 21. Qxd4 {[%clk 0:01:55]}  Bxd4+ {[%clk 0:01:47]} 22. Rxd4 {[%clk 0:01:54]}  f5 {[%clk 0:01:40]} 23. Rcd1 {[%clk 0:01:50]}  Bf7 {[%clk 0:01:28]} 24. exf5 {[%clk 0:01:42]}  gxf5 {[%clk 0:01:27]} 25. Rxd6 {[%clk 0:01:41]}  Rxd6 {[%clk 0:01:26]} 26. Rxd6 {[%clk 0:01:40]}  Ng7 {[%clk 0:01:19]} 27. Bf1 {[%clk 0:01:33]}  Re1 {[%clk 0:01:11]} 28. Rd8+ {[%clk 0:01:31]}  Ne8 {[%clk 0:01:10]} 29. Kf2 {[%clk 0:01:24]}  Rc1 {[%clk 0:01:06]} 30. Bxc1 {[%clk 0:01:12]}  Kg7 {[%clk 0:00:55]} 31. b3 {[%clk 0:01:03]}  Ne6 {[%clk 0:00:54]} 32. Rd7 {[%clk 0:01:01]}  Nf6 {[%clk 0:00:55]} 33. Rxb7 {[%clk 0:00:59]}  Nc5 {[%clk 0:00:54]} 34. Ra7 {[%clk 0:00:59]}  Kg6 {[%clk 0:00:54]} 35. Bb2 {[%clk 0:00:55]}  a4 {[%clk 0:00:51]} 36. b4 {[%clk 0:00:52]}  Ne6 {[%clk 0:00:51]} 37. Nxa4 {[%clk 0:00:51]}  Nf4 {[%clk 0:00:49]} 38. b5 {[%clk 0:00:49]}  cxb5 {[%clk 0:00:48]} 39. cxb5 {[%clk 0:00:49]}  Bd5 {[%clk 0:00:46]} 40. Ra6 {[%clk 0:00:47]}  Ne6 {[%clk 0:00:40]} 41. Nb6 {[%clk 0:00:43]}  Bb7 {[%clk 0:00:36]} 42. Ra7 {[%clk 0:00:42]}  Nc5 {[%clk 0:00:37]} 43. a4 {[%clk 0:00:37]}  Nh5 {[%clk 0:00:28]} 44. Nc4 {[%clk 0:00:35]}  Nf4 {[%clk 0:00:27]} 45. Ne5+ {[%clk 0:00:34]}  Kg5 {[%clk 0:00:24]} 46. a5 {[%clk 0:00:33]}  Bd5 {[%clk 0:00:21]} 47. b6 {[%clk 0:00:33]}  h5 {[%clk 0:00:18]} 48. a6 {[%clk 0:00:32]}  Na4 {[%clk 0:00:13]} 49. b7 {[%clk 0:00:32]}  Nxb2 {[%clk 0:00:11]} 50. b8=Q {[%clk 0:00:31]}  Nc4 {[%clk 0:00:07]} 51. Bxc4 {[%clk 0:00:29]}  Bxc4 {[%clk 0:00:07]} 52. Rg7+ {[%clk 0:00:29]}  Kf6 {[%clk 0:00:06]} 53. Qf8+ {[%clk 0:00:14]}  Kxe5 {[%clk 0:00:05]} 54. Re7+ {[%clk 0:00:13]}  Ne6 {[%clk 0:00:04]} 55. Qb8+ {[%clk 0:00:09]}  Kf6 {[%clk 0:00:03]} 56. Qd6 {[%clk 0:00:08]} 1-0


[Site "https://www.chess.com"]

[Event "Early Titled Tuesday Blitz | February 8 2022"]
[White "Budrewicz, Krzysztof"]
[Black "Tarasova, Viktoriya"]
[WhiteFideId "1127950"]
[BlackFideId "4175840"]
[WhiteElo "2248"]
[BlackElo "2182"]
[Result "1-0"]
[Round "09"]
[TimeControl "180+1"]
[Date "2022.02.08"]
[WhiteClock "0:00:18"]
[BlackClock "0:00:01"]

1. d4 {[%clk 0:03:00]}  Nf6 {[%clk 0:02:55]} 2. c4 {[%clk 0:03:00]}  e6 {[%clk 0:02:54]} 3. Nf3 {[%clk 0:03:01]}  b6 {[%clk 0:02:53]} 4. g3 {[%clk 0:03:01]}  Ba6 {[%clk 0:02:53]} 5. b3 {[%clk 0:03:01]}  d5 {[%clk 0:02:52]} 6. Bg2 {[%clk 0:02:54]}  Bb4+ {[%clk 0:02:49]} 7. Bd2 {[%clk 0:02:53]}  Be7 {[%clk 0:02:48]} 8. O-O {[%clk 0:02:53]}  O-O {[%clk 0:02:48]} 9. Ne5 {[%clk 0:02:45]}  Bb7 {[%clk 0:02:47]} 10. Nc3 {[%clk 0:02:44]}  Nbd7 {[%clk 0:02:47]} 11. Nxd7 {[%clk 0:02:44]}  Qxd7 {[%clk 0:02:47]} 12. a4 {[%clk 0:02:43]}  a5 {[%clk 0:02:46]} 13. Bf4 {[%clk 0:02:41]}  c5 {[%clk 0:02:44]} 14. dxc5 {[%clk 0:02:40]}  Bxc5 {[%clk 0:02:42]} 15. cxd5 {[%clk 0:02:40]}  Nxd5 {[%clk 0:02:40]} 16. Nxd5 {[%clk 0:02:40]}  exd5 {[%clk 0:02:41]} 17. Rc1 {[%clk 0:02:18]}  Rfe8 {[%clk 0:02:39]} 18. Re1 {[%clk 0:02:13]}  Rad8 {[%clk 0:02:28]} 19. Bf3 {[%clk 0:02:07]}  Bb4 {[%clk 0:02:26]} 20. Bd2 {[%clk 0:02:07]}  Ba3 {[%clk 0:02:24]} 21. Rc2 {[%clk 0:02:02]}  d4 {[%clk 0:02:21]} 22. Bxb7 {[%clk 0:01:46]}  Qxb7 {[%clk 0:02:20]} 23. Bf4 {[%clk 0:01:37]}  Bb4 {[%clk 0:02:18]} 24. Rf1 {[%clk 0:01:36]}  Qe4 {[%clk 0:02:16]} 25. Qd3 {[%clk 0:01:32]}  Qxd3 {[%clk 0:02:11]} 26. exd3 {[%clk 0:01:33]}  Bc5 {[%clk 0:02:11]} 27. Kg2 {[%clk 0:01:30]}  Rd7 {[%clk 0:02:11]} 28. Rfc1 {[%clk 0:01:29]}  h6 {[%clk 0:02:09]} 29. h4 {[%clk 0:01:29]}  Rd5 {[%clk 0:02:04]} 30. Kf1 {[%clk 0:01:29]}  g5 {[%clk 0:02:02]} 31. hxg5 {[%clk 0:01:28]}  hxg5 {[%clk 0:02:03]} 32. Bd2 {[%clk 0:01:27]}  Ra8 {[%clk 0:01:23]} 33. Re1 {[%clk 0:01:25]}  Kg7 {[%clk 0:01:21]} 34. Re4 {[%clk 0:01:24]}  Kf6 {[%clk 0:01:12]} 35. Bc1 {[%clk 0:01:22]}  Rad8 {[%clk 0:01:05]} 36. Kg2 {[%clk 0:01:19]}  Kg6 {[%clk 0:01:02]} 37. Rce2 {[%clk 0:01:18]}  Bb4 {[%clk 0:00:46]} 38. Rc2 {[%clk 0:01:13]}  Bc3 {[%clk 0:00:42]} 39. Re7 {[%clk 0:01:12]}  b5 {[%clk 0:00:40]} 40. Rb7 {[%clk 0:01:09]}  bxa4 {[%clk 0:00:36]} 41. bxa4 {[%clk 0:01:10]}  Re8 {[%clk 0:00:34]} 42. Bb2 {[%clk 0:01:05]}  Bxb2 {[%clk 0:00:23]} 43. Rbxb2 {[%clk 0:01:05]}  Re1 {[%clk 0:00:24]} 44. Rb6+ {[%clk 0:00:57]}  Kg7 {[%clk 0:00:20]} 45. g4 {[%clk 0:00:50]}  Ra1 {[%clk 0:00:16]} 46. Rb7 {[%clk 0:00:48]}  Rxa4 {[%clk 0:00:14]} 47. Rcc7 {[%clk 0:00:48]}  Rb4 {[%clk 0:00:14]} 48. Rxf7+ {[%clk 0:00:47]}  Kg8 {[%clk 0:00:14]} 49. Ra7 {[%clk 0:00:47]}  Rb8 {[%clk 0:00:09]} 50. Rg7+ {[%clk 0:00:47]}  Kh8 {[%clk 0:00:08]} 51. Rh7+ {[%clk 0:00:47]}  Kg8 {[%clk 0:00:09]} 52. Rag7+ {[%clk 0:00:48]}  Kf8 {[%clk 0:00:09]} 53. Ra7 {[%clk 0:00:48]}  Kg8 {[%clk 0:00:09]} 54. Kg3 {[%clk 0:00:46]}  Rc5 {[%clk 0:00:07]} 55. Rhd7 {[%clk 0:00:46]}  Rc3 {[%clk 0:00:02]} 56. Rxd4 {[%clk 0:00:44]}  Rc1 {[%clk 0:00:02]} 57. Rxa5 {[%clk 0:00:44]}  Rg1+ {[%clk 0:00:02]} 58. Kh2 {[%clk 0:00:43]}  Rbb1 {[%clk 0:00:02]} 59. Rxg5+ {[%clk 0:00:42]}  Kf7 {[%clk 0:00:03]} 60. Rf4+ {[%clk 0:00:41]}  Ke6 {[%clk 0:00:03]} 61. d4 {[%clk 0:00:40]}  Rh1+ {[%clk 0:00:03]} 62. Kg2 {[%clk 0:00:40]}  Rhg1+ {[%clk 0:00:03]} 63. Kf3 {[%clk 0:00:36]}  Rb3+ {[%clk 0:00:02]} 64. Ke2 {[%clk 0:00:36]}  Rb2+ {[%clk 0:00:02]} 65. Kd3 {[%clk 0:00:36]}  Rd1+ {[%clk 0:00:02]} 66. Kc3 {[%clk 0:00:36]}  Rbb1 {[%clk 0:00:02]} 67. Re5+ {[%clk 0:00:37]}  Kd6 {[%clk 0:00:02]} 68. Rf6+ {[%clk 0:00:37]}  Kd7 {[%clk 0:00:02]} 69. Re2 {[%clk 0:00:33]}  Rbc1+ {[%clk 0:00:03]} 70. Rc2 {[%clk 0:00:34]}  Ra1 {[%clk 0:00:03]} 71. g5 {[%clk 0:00:30]}  Ra8 {[%clk 0:00:03]} 72. d5 {[%clk 0:00:28]}  Rc8+ {[%clk 0:00:03]} 73. Rc6 {[%clk 0:00:28]}  Rxc6+ {[%clk 0:00:02]} 74. dxc6+ {[%clk 0:00:28]}  Kxc6 {[%clk 0:00:02]} 75. f4 {[%clk 0:00:18]}  Rf1 {[%clk 0:00:01]} 76. Kd4+ {[%clk 0:00:17]}  Kd6 {[%clk 0:00:01]} 77. Ke4 {[%clk 0:00:18]}  Re1+ {[%clk 0:00:01]} 78. Kf5 {[%clk 0:00:18]} 1-0


[Site "https://www.chess.com"]

[Event "Early Titled Tuesday Blitz | February 8 2022"]
[White "Bugayev, Vladimir"]
[Black "Cramling Bellon, Anna"]
[WhiteFideId "30901480"]
[BlackFideId "32009232"]
[WhiteElo "2367"]
[BlackElo "1905"]
[Result "1-0"]
[Round "09"]
[TimeControl "180+1"]
[Date "2022.02.08"]
[WhiteClock "0:01:19"]
[BlackClock "0:00:01"]

1. e4 {[%clk 0:03:00]}  c5 {[%clk 0:02:52]} 2. Nc3 {[%clk 0:03:00]}  Nc6 {[%clk 0:02:51]} 3. Bb5 {[%clk 0:03:01]}  g6 {[%clk 0:02:41]} 4. Bxc6 {[%clk 0:02:59]}  dxc6 {[%clk 0:02:41]} 5. d3 {[%clk 0:03:00]}  Bg7 {[%clk 0:02:41]} 6. Be3 {[%clk 0:03:00]}  b6 {[%clk 0:02:40]} 7. f4 {[%clk 0:02:56]}  Nf6 {[%clk 0:02:39]} 8. h3 {[%clk 0:02:56]}  e6 {[%clk 0:02:36]} 9. Nf3 {[%clk 0:02:56]}  O-O {[%clk 0:02:35]} 10. O-O {[%clk 0:02:55]}  Qc7 {[%clk 0:02:33]} 11. Qe1 {[%clk 0:02:41]}  Nh5 {[%clk 0:02:32]} 12. e5 {[%clk 0:02:38]}  f6 {[%clk 0:02:24]} 13. g4 {[%clk 0:02:35]}  fxe5 {[%clk 0:02:15]} 14. gxh5 {[%clk 0:02:32]}  exf4 {[%clk 0:02:10]} 15. Bd2 {[%clk 0:02:15]}  gxh5 {[%clk 0:02:10]} 16. Qh4 {[%clk 0:02:11]}  Rf5 {[%clk 0:01:44]} 17. Kh2 {[%clk 0:01:55]}  e5 {[%clk 0:01:31]} 18. Ne4 {[%clk 0:01:49]}  Be6 {[%clk 0:01:25]} 19. Rg1 {[%clk 0:01:47]}  Kh8 {[%clk 0:01:24]} 20. Bc3 {[%clk 0:01:41]}  Bd5 {[%clk 0:01:21]} 21. Rg2 {[%clk 0:01:39]}  Bxe4 {[%clk 0:00:29]} 22. dxe4 {[%clk 0:01:38]}  Rff8 {[%clk 0:00:08]} 23. Rxg7 {[%clk 0:01:26]}  Qxg7 {[%clk 0:00:02]} 24. Bxe5 {[%clk 0:01:25]}  Rf7 {[%clk 0:00:03]} 25. Rg1 {[%clk 0:01:21]}  Qxe5 {[%clk 0:00:01]} 26. Nxe5 {[%clk 0:01:21]}  Re7 {[%clk 0:00:01]} 27. Qxe7 {[%clk 0:01:19]} 1-0


[Site "https://www.chess.com"]

[Event "Early Titled Tuesday Blitz | February 8 2022"]
[White "Camacho Collados, Jose"]
[Black "Krzywda, Andrzej"]
[WhiteFideId "2265427"]
[BlackFideId "1114565"]
[WhiteElo "2351"]
[BlackElo "2098"]
[Result "0-1"]
[Round "09"]
[TimeControl "180+1"]
[Date "2022.02.08"]
[WhiteClock "0:01:27"]
[BlackClock "0:01:19"]

1. e4 {[%clk 0:03:00]}  c5 {[%clk 0:02:59]} 2. Nc3 {[%clk 0:02:59]}  Nc6 {[%clk 0:02:56]} 3. Nge2 {[%clk 0:02:58]}  g6 {[%clk 0:02:55]} 4. g3 {[%clk 0:02:57]}  Bg7 {[%clk 0:02:55]} 5. Bg2 {[%clk 0:02:58]}  d6 {[%clk 0:02:55]} 6. O-O {[%clk 0:02:58]}  e5 {[%clk 0:02:56]} 7. f4 {[%clk 0:02:51]}  Nge7 {[%clk 0:02:56]} 8. h3 {[%clk 0:02:49]}  O-O {[%clk 0:02:54]} 9. g4 {[%clk 0:02:46]}  f5 {[%clk 0:02:49]} 10. exf5 {[%clk 0:02:37]}  gxf5 {[%clk 0:02:47]} 11. g5 {[%clk 0:02:37]}  e4 {[%clk 0:02:45]} 12. d3 {[%clk 0:02:37]}  d5 {[%clk 0:02:45]} 13. dxe4 {[%clk 0:02:36]}  fxe4 {[%clk 0:02:43]} 14. Ng3 {[%clk 0:02:27]}  Nd4 {[%clk 0:02:29]} 15. Be3 {[%clk 0:02:23]}  Nef5 {[%clk 0:02:29]} 16. Nxf5 {[%clk 0:02:21]}  Bxf5 {[%clk 0:02:30]} 17. Nxd5 {[%clk 0:02:16]}  Qxd5 {[%clk 0:02:21]} 18. c3 {[%clk 0:02:16]}  Rad8 {[%clk 0:02:13]} 19. cxd4 {[%clk 0:02:16]}  cxd4 {[%clk 0:02:14]} 20. Bd2 {[%clk 0:02:14]}  Qe6 {[%clk 0:02:03]} 21. Bb4 {[%clk 0:02:10]}  Rfe8 {[%clk 0:01:59]} 22. Qh5 {[%clk 0:02:03]}  d3 {[%clk 0:01:52]} 23. Bc3 {[%clk 0:01:59]}  Bxc3 {[%clk 0:01:45]} 24. bxc3 {[%clk 0:02:00]}  e3 {[%clk 0:01:45]} 25. c4 {[%clk 0:01:59]}  e2 {[%clk 0:01:41]} 26. Rfe1 {[%clk 0:01:37]}  Qe3+ {[%clk 0:01:33]} 27. Kh1 {[%clk 0:01:33]}  d2 {[%clk 0:01:25]} 28. Bd5+ {[%clk 0:01:28]}  Rxd5 {[%clk 0:01:24]} 29. cxd5 {[%clk 0:01:29]}  Be4+ {[%clk 0:01:19]} 30. Kh2 {[%clk 0:01:27]}  Qf2# {[%clk 0:01:19]} 0-1


[Site "https://www.chess.com"]

[Event "Early Titled Tuesday Blitz | February 8 2022"]
[White "Cherniaiev, Tykhon"]
[Black "Ratnakaran, K."]
[WhiteFideId "14182360"]
[BlackFideId "5005507"]
[WhiteElo "2289"]
[BlackElo "2391"]
[Result "1-0"]
[Round "09"]
[TimeControl "180+1"]
[Date "2022.02.08"]
[WhiteClock "0:02:04"]
[BlackClock "0:02:35"]

1. Nf3 {[%clk 0:03:00]}  g6 {[%clk 0:02:56]} 2. g3 {[%clk 0:02:59]}  Bg7 {[%clk 0:02:55]} 3. Bg2 {[%clk 0:03:00]}  e5 {[%clk 0:02:56]} 4. Nc3 {[%clk 0:02:57]}  d5 {[%clk 0:02:56]} 5. e4 {[%clk 0:02:56]}  dxe4 {[%clk 0:02:56]} 6. Nxe4 {[%clk 0:02:56]}  Ne7 {[%clk 0:02:56]} 7. d3 {[%clk 0:02:52]}  O-O {[%clk 0:02:56]} 8. O-O {[%clk 0:02:52]}  f5 {[%clk 0:02:56]} 9. Nc3 {[%clk 0:02:51]}  Nbc6 {[%clk 0:02:55]} 10. Re1 {[%clk 0:02:51]}  h6 {[%clk 0:02:55]} 11. Be3 {[%clk 0:02:34]}  f4 {[%clk 0:02:52]} 12. Bc5 {[%clk 0:02:27]}  fxg3 {[%clk 0:02:50]} 13. fxg3 {[%clk 0:02:22]}  Kh7 {[%clk 0:02:43]} 14. Ne4 {[%clk 0:02:18]}  Bg4 {[%clk 0:02:39]} 15. Nfg5+ {[%clk 0:02:15]}  hxg5 {[%clk 0:02:39]} 16. Nxg5+ {[%clk 0:02:08]}  Kg8 {[%clk 0:02:38]} 17. Qxg4 {[%clk 0:02:08]}  Bf6 {[%clk 0:02:35]} 18. Qc4+ {[%clk 0:02:04]} 1-0


[Site "https://www.chess.com"]